bitfinex-derivatives/quotes_SOLF0:USTF0_20260217
["timestamp","ask_amount","ask_price","bid_price","bid_amount"]
[1771323665093,2.84977798,85.349,85.305,10.5561]
[1771323665291,73.7,85.372,85.276,83.18]
[1771323665292,2.88781022,85.367,85.306,3.78821184]
[1771323665592,2.88781022,85.367,85.3,2.79832031]
[1771323665593,2.79832031,85.36,85.314,3.78821184]
[1771323666598,10.5503,85.353,85.314,3.78821184]
[1771323667484,2.79832031,85.35,85.314,3.78821184]
[1771323676796,2.79832031,85.35,85.316,3.59944059]
[1771323678394,2.79832031,85.34,85.304,3.59944059]
[1771323678599,2.79832031,85.33,85.304,3.59944059]
[1771323679096,2.85833242,85.339,85.304,3.59944059]
[1771323680296,10.5511,85.346,85.305,3.59944059]
[1771323681098,2.79832031,85.35,85.305,3.59944059]
[1771323681299,13.41879029,85.34,85.305,3.59944059]
[1771323681501,16.2171106,85.34,85.305,3.59944059]
[1771323683904,2.87167858,85.315,85.279,3.59944059]
[1771323684101,2.79832031,85.31,85.279,3.59944059]
[1771323684804,2.79832031,85.31,85.279,14.15874059]
[1771323685200,10.5549,85.316,85.28,3.59944059]
[1771323685400,2.87214293,85.327,85.282,3.59944059]
[1771323686803,2.87214293,85.327,85.27,2.79832031]
[1771323686804,10.5538,85.325,85.285,3.59944059]
[1771323687505,2.79832031,85.32,85.285,3.59944059]
[1771323688805,10.5538,85.325,85.285,3.59944059]
[1771323691407,2.85001468,85.309,85.26,3.59944059]
[1771323691608,2.85001468,85.299,85.26,3.59944059]
[1771323692008,2.79832031,85.31,85.26,3.59944059]
[1771323692410,10.5558,85.308,85.263,10.5612]
[1771323692816,10.5558,85.308,85.25,2.79832031]
[1771323692817,10.5558,85.308,85.264,3.59944059]
[1771323693805,10.5558,85.308,85.266,3.59944059]
[1771323695109,10.5548,85.316,85.272,3.59944059]
[1771323696111,2.79832031,85.3,85.266,14.16034059]
[1771323696308,2.79832031,85.3,85.267,3.59944059]
[1771323696509,2.85558657,85.309,85.267,3.59944059]
[1771323697112,2.79832031,85.31,85.275,3.59944059]
[1771323697308,2.79832031,85.32,85.275,3.59944059]
[1771323698014,5.38887185,85.32,85.275,3.59944059]
[1771323698812,10.5554,85.312,85.277,3.59944059]
[1771323699509,10.5544,85.319,85.278,10.5595]
[1771323699921,5.38887185,85.32,85.279,3.59944059]
[1771323700717,5.38887185,85.32,85.284,10.5587]
[1771323701116,2.59055154,85.32,85.285,3.59944059]
[1771323701317,10.5537,85.325,85.287,3.59944059]
[1771323701916,2.79832031,85.32,85.287,3.59944059]
[1771323702818,10.5537,85.325,85.287,3.59944059]
[1771323704113,2.79832031,85.32,85.287,3.59944059]
[1771323704720,10.5537,85.325,85.29,3.91164758]
[1771323705022,2.79832031,85.33,85.29,3.91164758]
[1771323705821,2.79832031,85.33,85.292,3.91164758]
[1771323709022,10.5528,85.333,85.294,3.91164758]
[1771323709717,2.55288197,85.342,85.296,3.91164758]
[1771323709925,10.5514,85.343,85.296,3.91164758]
[1771323710117,2.79832031,85.35,85.301,3.91164758]
[1771323710321,2.55288197,85.354,85.301,3.91164758]
[1771323710616,73.72,85.359,85.301,3.91164758]
[1771323711422,2.79832031,85.36,85.301,3.91164758]
[1771323711620,5.36672948,85.36,85.301,3.91164758]
[1771323711826,10.5503,85.353,85.309,3.64810033]
[1771323712226,10.5503,85.353,85.31,10.5555]
[1771323712422,10.5503,85.353,85.311,3.64810033]
[1771323713122,10.5503,85.353,85.314,3.64810033]
[1771323713325,10.5491,85.363,85.314,3.64810033]
[1771323713630,2.79687238,85.37,85.314,3.64810033]
[1771323714124,2.79687238,85.37,85.31,3.64810033]
[1771323714125,2.57191374,85.368,85.31,3.64810033]
[1771323714324,156.6343444,85.4,85.291,3.64810033]
[1771323714325,2.79687238,85.33,85.291,3.64810033]
[1771323714626,2.57191374,85.329,85.287,10.5584]
[1771323715237,2.57191374,85.329,85.287,14.20650033]
[1771323715827,2.57191374,85.329,85.291,10.5578]
[1771323716037,2.57191374,85.329,85.292,3.64810033]
[1771323716536,2.79687238,85.33,85.295,3.64810033]
[1771323716938,2.79687238,85.34,85.295,3.64810033]
[1771323717132,2.79687238,85.34,85.303,10.5564]
[1771323718134,2.79687238,85.35,85.306,3.64810033]
[1771323719035,2.79687238,85.33,85.286,3.64810033]
[1771323719339,5.58446893,85.33,85.286,3.64810033]
[1771323719839,2.79687238,85.32,85.286,3.64810033]
[1771323720238,2.78759655,85.329,85.288,10.5582]
[1771323722238,2.77444656,85.319,85.28,10.5591]
[1771323722432,5.57131894,85.3,85.258,3.64810033]
[1771323723742,5.57131894,85.3,85.261,14.20960033]
[1771323723937,2.76404222,85.318,85.262,3.64810033]
[1771323724140,2.79687238,85.31,85.262,3.64810033]
[1771323724542,2.79687238,85.31,85.227,21.1314]
[1771323724543,2.76404222,85.299,85.24,2.79687238]
[1771323724841,2.76404222,85.299,85.241,3.64810033]
[1771323725637,13.32104222,85.299,85.257,10.5621]
[1771323726430,2.76404222,85.299,85.26,3.64810033]
[1771323727843,2.76404222,85.299,85.262,10.5614]
[1771323729239,2.76404222,85.299,85.269,10.5606]
[1771323729435,2.76404222,85.299,85.26,3.64810033]
[1771323730745,2.76404222,85.299,85.261,14.20970033]
[1771323730943,2.76404222,85.299,85.262,3.64810033]
[1771323731544,2.76404222,85.299,85.265,10.5611]
[1771323734241,2.76404222,85.299,85.265,14.27561059]
[1771323734445,2.79687238,85.3,85.265,14.27561059]
[1771323734746,2.79687238,85.31,85.268,3.71451059]
[1771323735245,10.5549,85.316,85.268,3.71451059]
[1771323735446,2.79687238,85.31,85.268,3.71451059]
[1771323735838,2.79687238,85.31,85.277,10.5595]
[1771323736235,2.82927461,85.289,85.239,3.71451059]
[1771323736547,2.82927461,85.279,85.239,3.71451059]
[1771323736750,2.79687238,85.27,85.239,3.71451059]
[1771323737349,2.82927461,85.279,85.239,3.71451059]
[1771323738141,2.79687238,85.29,85.239,3.71451059]
[1771323738445,2.83961852,85.306,85.255,3.71451059]
[1771323738934,2.83961852,85.306,85.256,3.71451059]
[1771323740546,10.5565,85.303,85.265,3.71451059]
[1771323741442,2.83961852,85.306,85.266,10.5609]
[1771323741648,13.35237238,85.31,85.267,3.71451059]
[1771323742644,13.35237238,85.31,85.275,10.5598]
[1771323742844,10.5547,85.317,85.276,3.71451059]
[1771323743250,10.5553,85.312,85.277,10.5595]
[1771323743441,10.5553,85.312,85.276,3.71451059]
[1771323745652,2.89684854,85.316,85.277,10.5596]
[1771323745846,2.79687238,85.31,85.277,10.5596]
[1771323746045,2.89684854,85.316,85.277,10.5596]
[1771323746743,10.555,85.314,85.277,10.5596]
[1771323748048,9.51940001,85.338,85.246,73.82]
[1771323748049,10.5541,85.322,85.28,3.71451059]
[1771323748248,2.79687238,85.34,85.281,3.71451059]
[1771323748752,2.82943115,85.339,85.281,3.71451059]
[1771323749552,10.5532,85.329,85.282,3.71451059]
[1771323749753,2.79687238,85.33,85.282,3.71451059]
[1771323750253,10.5532,85.329,85.285,3.71451059]
[1771323750648,10.5523,85.336,85.295,10.5572]
[1771323750853,10.5523,85.336,85.295,14.27171059]
[1771323751551,10.5523,85.336,85.296,3.71451059]
[1771323751746,10.5514,85.343,85.298,3.71451059]
[1771323752148,2.79687238,85.35,85.309,3.71451059]
[1771323752551,2.59174474,85.352,85.309,3.71451059]
[1771323752948,10.5507,85.349,85.311,3.71451059]
[1771323753652,2.63693612,85.339,85.303,10.5563]
[1771323754755,2.63693612,85.339,85.303,14.27081059]
[1771323755655,2.65373956,85.345,85.306,10.5559]
[1771323755953,2.65373956,85.345,85.306,14.27041059]
[1771323756742,2.79687238,85.35,85.312,10.5552]
[1771323756946,10.5501,85.354,85.313,3.71451059]
[1771323757149,2.65373956,85.359,85.313,3.71451059]
[1771323758052,2.79687238,85.37,85.313,3.71451059]
[1771323758652,10.5486,85.366,85.324,10.5537]
[1771323758861,10.5486,85.366,85.325,3.71451059]
[1771323760755,10.5486,85.366,85.328,10.5533]
[1771323760962,2.79687238,85.37,85.329,3.71451059]
[1771323761164,5.45747502,85.37,85.329,3.71451059]
[1771323761462,2.66060264,85.365,85.324,10.5537]
[1771323762161,2.79687238,85.36,85.324,10.5537]
[1771323763461,10.549,85.363,85.324,10.5537]
[1771323764555,2.54233355,85.349,85.3,6.5965094]
[1771323764754,5.33920593,85.34,85.3,3.79963702]
[1771323765663,5.33920593,85.34,85.304,10.5562]
[1771323766062,2.54233355,85.34,85.304,14.35583702]
[1771323766461,10.5514,85.344,85.304,14.35583702]
[1771323766664,2.58483834,85.349,85.305,3.79963702]
[1771323767256,5.44430362,85.36,85.325,10.5537]
[1771323767456,2.64743124,85.36,85.325,10.5537]
[1771323767660,5.44430362,85.36,85.325,10.5537]
[1771323767856,2.64743124,85.386,85.351,10.5504]
[1771323769561,159.43121678,85.4,85.34,3.79963702]
[1771323769562,5.47698231,85.38,85.34,3.79963702]
[1771323769756,2.79687238,85.37,85.327,3.79963702]
[1771323770262,2.79687238,85.37,85.342,10.5514]
[1771323771164,2.68010993,85.379,85.342,10.5514]
[1771323772962,2.75809401,85.392,85.341,3.84492319]
[1771323773858,2.79441264,85.39,85.341,3.84492319]
[1771323774760,13.34011264,85.39,85.355,10.5499]
[1771323775966,2.79441264,85.37,85.328,3.84492319]
[1771323777758,2.79441264,85.37,85.33,10.5529]
[1771323780865,6.00954342,85.37,85.328,3.84492319]
[1771323781070,3.21513078,85.359,85.322,10.554]
[1771323782466,2.79441264,85.36,85.327,10.5533]
[1771323782658,3.21513078,85.385,85.328,3.84492319]
[1771323782858,6.00954342,85.38,85.328,3.84492319]
[1771323783769,10.5477,85.374,85.334,3.84492319]
[1771323784774,6.00954342,85.38,85.334,3.84492319]
[1771323784775,10.5483,85.369,85.334,3.84492319]
[1771323785069,2.79441264,85.37,85.334,3.84492319]
[1771323786267,3.21513078,85.38,85.344,3.84492319]
[1771323786268,2.79441264,85.38,85.344,3.84492319]
[1771323787671,2.79441264,85.38,85.346,10.5511]
[1771323788373,13.7696768,85.385,85.346,10.5511]
[1771323790673,10.5467,85.381,85.344,3.84492319]
[1771323791875,6.02187117,85.37,85.333,3.84492319]
[1771323792075,3.22745853,85.37,85.333,3.84492319]
[1771323792667,2.79441264,85.38,85.343,10.5513]
[1771323792873,84.286,85.387,85.344,3.84492319]
[1771323793177,3.1945748,85.399,85.344,3.84492319]
[1771323794676,10.5453,85.393,85.353,10.5501]
[1771323795575,2.79441264,85.39,85.353,10.5501]
[1771323798881,2.79441264,85.39,85.356,10.5498]
[1771323799077,2.79441264,85.39,85.354,3.85088417]
[1771323799278,10.5458,85.389,85.354,3.85088417]
[1771323799579,5.97310437,85.38,85.343,3.85088417]
[1771323799770,2.79441264,85.37,85.321,3.85088417]
[1771323800681,2.79441264,85.37,85.334,10.5524]
[1771323802177,2.79441264,85.37,85.334,14.40328417]
[1771323803286,2.79441264,85.37,85.336,10.5523]
[1771323805782,2.79441264,85.37,85.336,14.40318417]
[1771323806078,10.5477,85.374,85.339,3.85088417]
[1771323806278,3.17869173,85.379,85.339,3.85088417]
[1771323806983,10.5465,85.384,85.339,3.85088417]
[1771323807284,10.5465,85.384,85.347,3.85088417]
[1771323808688,10.5465,85.384,85.349,10.5507]
[1771323808984,10.5465,85.384,85.35,3.85088417]
[1771323811987,13.76906491,85.384,85.35,3.85088417]
[1771323812280,2.79441264,85.38,85.342,10.5515]
[1771323812482,2.79441264,85.37,85.326,3.85088417]
[1771323813681,2.79441264,85.37,85.313,21.85329635]
[1771323813682,13.34261264,85.37,85.33,3.85088417]
[1771323813981,10.5482,85.37,85.33,3.85088417]
[1771323814680,10.5482,85.37,85.333,10.5526]
[1771323814878,10.5482,85.37,85.333,14.40348417]
[1771323816578,10.5482,85.37,85.333,3.85088417]
[1771323816783,10.5482,85.37,85.309,21.85329635]
[1771323816784,3.21438762,85.359,85.318,3.85088417]
[1771323817791,3.27967618,85.358,85.318,14.40538417]
[1771323820385,3.2631536,85.354,85.318,3.85088417]
[1771323820588,3.2631536,85.354,85.3,2.79441264]
[1771323820589,3.2631536,85.349,85.306,3.85088417]
[1771323821390,2.79441264,85.34,85.308,3.85088417]
[1771323822091,3.26575989,85.35,85.312,3.85088417]
[1771323822295,2.79441264,85.35,85.312,3.85088417]
[1771323823699,2.79441264,85.34,85.308,10.5558]
[1771323824897,2.79441264,85.34,85.31,10.5554]
[1771323826101,3.3424534,85.349,85.31,10.5554]
[1771323828996,3.3424534,85.349,85.31,14.14643887]
[1771323829197,10.5511,85.346,85.311,3.59103887]
[1771323829397,2.79441264,85.34,85.311,3.59103887]
[1771323829596,10.5511,85.346,85.311,3.59103887]
[1771323830105,3.3424534,85.349,85.311,3.59103887]
[1771323830907,3.31148542,85.347,85.311,14.14633887]
[1771323831101,3.31148542,85.339,85.291,3.93803336]
[1771323831909,2.79441264,85.35,85.311,3.93803336]
[1771323833603,13.34381264,85.36,85.314,3.93803336]
[1771323834806,13.34381264,85.36,85.324,10.5537]
[1771323835908,13.34591319,85.36,85.324,10.5537]
[1771323836110,73.76,85.368,85.333,3.93803336]
[1771323837006,2.79651319,85.35,85.321,3.93803336]
[1771323838913,3.23495061,85.349,85.304,3.93803336]
[1771323839111,2.79651319,85.33,85.304,3.93803336]
[1771323839314,2.79651319,85.33,85.283,3.93803336]
[1771323840206,2.79651319,85.33,85.284,3.93803336]
[1771323840712,2.79651319,85.33,85.298,10.5569]
[1771323841014,2.79651319,85.33,85.284,3.93803336]
[1771323841015,2.79651319,85.32,85.284,3.93803336]
[1771323843404,3.22508706,85.326,85.284,3.93803336]
[1771323843716,3.22508706,85.326,85.286,3.93803336]
[1771323844719,3.22508706,85.326,85.289,3.93803336]
[1771323844916,2.79651319,85.32,85.289,3.93803336]
[1771323846416,2.79651319,85.32,85.29,14.49593336]
[1771323847917,2.79651319,85.32,85.291,3.93803336]
[1771323849921,3.22508706,85.326,85.293,3.93803336]
[1771323850315,2.79651319,85.33,85.294,14.49543336]
[1771323850624,3.21302965,85.338,85.295,3.93803336]
[1771323851320,2.79651319,85.34,85.311,3.93803336]
[1771323852216,3.24496235,85.339,85.303,10.5563]
[1771323852622,3.24496235,85.339,85.298,3.93803336]
[1771323853423,3.24496235,85.339,85.309,10.5556]
[1771323854522,3.24496235,85.339,85.317,10.5546]
[1771323855122,3.302894,85.366,85.323,3.77160864]
[1771323856526,3.302894,85.359,85.301,3.77160864]
[1771323856825,21.0919,85.388,85.301,3.77160864]
[1771323856826,3.302894,85.349,85.301,3.77160864]
[1771323857323,3.302894,85.349,85.316,10.5547]
[1771323858824,3.302894,85.349,85.279,21.85329635]
[1771323858825,3.34410122,85.329,85.285,3.77160864]
[1771323859027,3.33181191,85.319,85.273,3.77160864]
[1771323859329,3.33181191,85.309,85.251,3.77160864]
[1771323859627,2.79651319,85.3,85.262,10.5614]
[1771323861412,10.5567,85.301,85.262,10.5614]
[1771323861614,3.32150863,85.343,85.236,21.1293]
[1771323861822,3.32150863,85.313,85.261,3.77160864]
[1771323862026,10.5569,85.299,85.261,3.77160864]
[1771323862621,13.87740863,85.307,85.261,3.77160864]
[1771323864027,13.87740863,85.307,85.263,10.5613]
[1771323864217,2.79651319,85.32,85.261,3.77160864]
[1771323865019,3.42951453,85.321,85.261,3.77160864]
[1771323865227,3.42951453,85.321,85.279,3.77160864]
[1771323865627,3.42951453,85.321,85.27,2.79651319]
[1771323865628,2.79651319,85.33,85.281,3.77160864]
[1771323865920,10.5509,85.347,85.301,3.77160864]
[1771323867030,2.79651319,85.34,85.301,3.77160864]
[1771323869127,2.79651319,85.34,85.256,21.1243]
[1771323869128,2.79651319,85.32,85.274,3.77160864]
[1771323870828,2.79651319,85.3,85.251,3.77160864]
[1771323871122,164.0859,85.369,85.251,3.77160864]
[1771323871123,3.29128825,85.307,85.251,3.77160864]
[1771323871531,3.29128825,85.307,85.267,10.5608]
[1771323872432,2.79651319,85.3,85.264,3.77160864]
[1771323873834,3.30516374,85.299,85.26,10.5617]
[1771323875126,3.30245813,85.338,85.283,3.77160864]
[1771323876837,10.5522,85.337,85.296,10.5572]
[1771323879241,10.553,85.331,85.289,10.5581]
[1771323880137,3.30245813,85.338,85.301,10.5565]
[1771323880536,2.79651319,85.34,85.301,10.5565]
[1771323881138,8.51903592,85.363,85.311,3.77160864]
[1771323881336,3.33403117,85.365,85.311,3.77160864]
[1771323881942,10.5489,85.364,85.322,14.32560864]
[1771323885051,10.5489,85.364,85.273,56.3002]
[1771323885052,3.33551077,85.339,85.26,3.68922859]
[1771323885346,3.33551077,85.339,85.281,3.68922859]
[1771323885534,10.5527,85.333,85.295,10.5573]
[1771323885734,10.5527,85.333,85.295,14.24652859]
[1771323885939,10.5527,85.333,85.296,3.68922859]
[1771323888755,3.33551077,85.339,85.296,3.68922859]
[1771323889650,3.33551077,85.339,85.307,10.5558]
[1771323891156,2.79651319,85.35,85.311,10.5554]
[1771323891854,2.79651319,85.35,85.308,3.7469611]
[1771323891855,10.552,85.339,85.294,3.7469611]
[1771323892052,2.79651319,85.33,85.294,3.7469611]
[1771323892654,2.79651319,85.33,85.298,10.557]
[1771323893755,3.31871662,85.338,85.298,10.557]
[1771323898063,3.29679842,85.333,85.29,10.5579]
[1771323898865,3.29679842,85.333,85.294,10.5575]
[1771323899067,2.79823111,85.33,85.294,10.5575]
[1771323900266,3.29679842,85.333,85.294,10.5575]
[1771323900467,2.79823111,85.31,85.266,3.7469611]
[1771323900664,2.79823111,85.31,85.26,2.79823111]
[1771323900665,2.79823111,85.3,85.253,3.7469611]
[1771323901560,2.79823111,85.3,85.264,10.5612]
[1771323903972,2.79823111,85.3,85.264,14.3081611]
[1771323905468,2.79823111,85.3,85.25,2.79823111]
[1771323905667,2.79823111,85.3,85.251,3.7469611]
[1771323906771,2.79823111,85.3,85.262,3.7469611]
[1771323907672,2.79823111,85.3,85.264,3.7469611]
[1771323908273,2.79823111,85.3,85.265,10.561]
[1771323908475,2.79823111,85.3,85.265,14.3079611]
[1771323909872,2.79823111,85.3,85.266,3.7469611]
[1771323910874,2.79823111,85.31,85.269,3.7469611]
[1771323911668,2.79823111,85.31,85.27,10.5605]
[1771323912279,2.79823111,85.31,85.271,3.7469611]
[1771323915876,10.5558,85.309,85.271,3.7469611]
[1771323916180,2.79823111,85.31,85.274,3.63026341]
[1771323918380,2.79823111,85.31,85.276,10.5597]
[1771323918978,10.5538,85.325,85.282,3.63026341]
[1771323919177,200.04124084,85.415,85.25,2.79823111]
[1771323919178,2.79823111,85.31,85.251,3.63026341]
[1771323919784,2.79823111,85.31,85.274,10.56]
[1771323919975,2.79823111,85.31,85.272,3.63026341]
[1771323920376,2.95365805,85.319,85.272,3.63026341]
[1771323921679,2.95365805,85.319,85.286,10.5584]
[1771323922672,2.95365805,85.319,85.28,3.63026341]
[1771323922878,2.79823111,85.33,85.28,3.63026341]
[1771323923682,2.79823111,85.33,85.295,10.5573]
[1771323925480,2.79823111,85.33,85.295,14.18756341]
[1771323926077,10.5527,85.333,85.297,14.18736341]
[1771323926683,10.5527,85.333,85.298,3.63026341]
[1771323926879,2.79823111,85.34,85.305,3.63026341]
[1771323927686,2.79823111,85.34,85.308,3.63026341]
[1771323927875,10.5514,85.344,85.308,3.63026341]
[1771323928385,2.79823111,85.34,85.308,3.63026341]
[1771323928777,2.79823111,85.34,85.302,10.5564]
[1771323928778,2.95551819,85.339,85.302,10.5564]
[1771323929376,2.94849309,85.309,85.271,3.63026341]
[1771323929874,2.79823111,85.3,85.271,3.63026341]
[1771323930584,2.79823111,85.3,85.271,14.19056341]
[1771323931486,10.5571,85.298,85.257,14.19226341]
[1771323931686,10.5571,85.298,85.195,35.18]
[1771323931687,2.79823111,85.28,85.245,3.63026341]
[1771323932182,2.97341297,85.289,85.245,3.63026341]
[1771323932183,2.79823111,85.27,85.245,3.63026341]
[1771323932383,2.79823111,85.27,85.211,3.63026341]
[1771323933685,2.79823111,85.27,85.237,10.5645]
[1771323934277,2.79823111,85.27,85.232,3.63026341]
[1771323934483,2.98806786,85.277,85.187,21.1415]
[1771323934484,2.98806786,85.259,85.219,3.63026341]
[1771323934785,2.79823111,85.25,85.219,3.63026341]
[1771323935783,2.79823111,85.25,85.219,14.19696341]
[1771323936182,2.79823111,85.26,85.224,10.5661]
[1771323936381,2.79823111,85.26,85.224,14.19636341]
[1771323938681,2.79823111,85.26,85.224,3.63026341]
[1771323940088,2.95219079,85.258,85.216,10.5671]
[1771323940390,2.79823111,85.25,85.216,10.5671]
[1771323941592,2.79823111,85.25,85.215,10.5672]
[1771323943092,2.79823111,85.25,85.208,3.63026341]
[1771323943996,2.79823111,85.26,85.22,3.63026341]
[1771323944797,5.78003629,85.27,85.234,3.88462552]
[1771323945997,10.56,85.274,85.237,3.88462552]
[1771323946392,2.79823111,85.28,85.237,3.88462552]
[1771323947101,2.79823111,85.29,85.237,3.88462552]
[1771323947803,10.5583,85.288,85.243,10.5638]
[1771323947996,10.5583,85.288,85.244,3.88462552]
[1771323949606,10.559,85.282,85.244,3.88462552]
[1771323949803,2.79823111,85.28,85.244,3.88462552]
[1771323950702,10.5595,85.278,85.244,3.88462552]
[1771323951007,13.55261157,85.278,85.236,3.76127077]
[1771323951704,2.986299,85.277,85.238,10.5644]
[1771323953008,2.79823111,85.29,85.245,3.76127077]
[1771323954509,2.97324291,85.279,85.229,3.76127077]
[1771323955712,2.97324291,85.279,85.239,10.5643]
[1771323960312,2.97324291,85.279,85.204,75.14]
[1771323960313,2.98177044,85.269,85.215,3.76127077]
[1771323960517,2.80204298,85.26,85.215,3.76127077]
[1771323961311,13.36254298,85.27,85.23,3.76127077]
[1771323961510,10.5605,85.27,85.23,3.76127077]
[1771323962314,10.5605,85.27,85.233,14.32627077]
[1771323962710,10.5605,85.27,85.234,3.76127077]
[1771323963611,10.5596,85.278,85.237,3.76127077]
[1771323964713,10.5596,85.278,85.241,10.564]
[1771323968112,2.80204298,85.28,85.25,10.5629]
[1771323968317,10.5581,85.289,85.251,3.76127077]
[1771323969711,13.35884298,85.3,85.261,3.76127077]
[1771323969910,3.02638685,85.307,85.261,3.76127077]
[1771323970114,2.80204298,85.31,85.261,3.76127077]
[1771323971922,13.35754298,85.31,85.271,3.76127077]
[1771323974518,2.80204298,85.31,85.278,10.5595]
[1771323974719,5.82842983,85.32,85.271,3.76127077]
[1771323975319,2.80204298,85.33,85.286,3.9457963]
[1771323975623,2.73750212,85.329,85.286,3.9457963]
[1771323976830,2.73750212,85.329,85.292,10.5577]
[1771323977424,2.7674805,85.327,85.292,10.5577]
[1771323978428,2.7674805,85.299,85.255,3.9457963]
[1771323979724,2.7674805,85.299,85.261,10.5615]
[1771323981225,2.7674805,85.299,85.261,14.5072963]
[1771323982726,10.557,85.298,85.261,14.5072963]
[1771323983327,2.76543802,85.291,85.254,10.5624]
[1771323986428,2.76543802,85.291,85.254,14.5081963]
[1771323990129,2.76543802,85.291,85.26,10.5617]
[1771323990629,10.557,85.299,85.26,10.5617]
[1771323991237,10.5573,85.296,85.26,10.5617]
[1771323991630,2.83025206,85.296,85.254,14.5081963]
[1771323991937,2.83025206,85.288,85.242,3.9457963]
[1771323992331,2.80204298,85.28,85.242,3.9457963]
[1771323993738,10.5598,85.276,85.242,3.9457963]
[1771323994635,10.559,85.282,85.243,14.5095963]
[1771323994839,2.83025206,85.288,85.244,3.9457963]
[1771323995740,10.5598,85.276,85.244,3.9457963]
[1771323997142,2.90952349,85.259,85.223,3.9457963]
[1771323997441,2.90952349,85.259,85.201,3.9457963]
[1771323997442,2.80204298,85.25,85.201,3.9457963]
[1771323998343,2.80204298,85.25,85.208,3.9457963]
[1771323998344,10.5632,85.248,85.208,3.9457963]
[1771323998637,2.90952349,85.247,85.208,3.9457963]
[1771323999835,10.5635,85.246,85.21,10.5678]
[1771324000633,10.5635,85.246,85.208,3.9457963]
[1771324004549,16.27376392,85.24,85.201,10.5689]
[1771324005048,16.27376392,85.24,85.201,14.17266397]
[1771324005242,16.27376392,85.24,85.203,10.5687]
[1771324006045,16.27376392,85.24,85.202,3.60376397]
[1771324010143,10.5646,85.237,85.202,3.60376397]
[1771324016049,2.89685207,85.219,85.18,3.97873319]
[1771324017344,2.89685207,85.219,85.187,10.5706]
[1771324022568,2.89685207,85.219,85.193,10.57]
[1771324024255,2.89685207,85.219,85.18,3.97873319]
[1771324025754,2.89685207,85.219,85.181,3.97873319]
[1771324025755,10.5669,85.218,85.181,3.97873319]
[1771324027661,10.5669,85.218,85.183,10.5712]
[1771324028360,10.5669,85.218,85.183,14.54993319]
[1771324028561,10.5669,85.218,85.184,3.97873319]
[1771324029160,10.5658,85.228,85.19,3.97873319]
[1771324029355,2.80573997,85.22,85.163,3.97873319]
[1771324029554,3.19466756,85.207,85.166,10.5733]
[1771324029858,2.80573997,85.19,85.151,6.02135232]
[1771324030058,3.19466756,85.189,85.151,3.97873319]
[1771324031164,3.2615032,85.218,85.151,3.97873319]
[1771324031364,2.80573997,85.2,85.151,3.97873319]
[1771324032254,2.80573997,85.19,85.152,3.97873319]
[1771324032460,3.2615032,85.189,85.152,3.97873319]
[1771324033065,3.27875199,85.221,85.162,3.97873319]
[1771324033366,2.80573997,85.21,85.162,3.97873319]
[1771324033556,2.80573997,85.19,85.15,3.97873319]
[1771324034661,2.80573997,85.19,85.15,14.55393319]
[1771324035669,14.13699573,85.193,85.15,14.55393319]
[1771324036162,14.37793484,85.252,85.131,2.04288893]
[1771324036163,3.56689573,85.218,85.171,3.81303377]
[1771324036569,2.80573997,85.24,85.171,3.81303377]
[1771324036870,3.56689573,85.23,85.181,3.81303377]
[1771324037764,3.56689573,85.23,85.116,29.13772847]
[1771324037765,3.57908434,85.244,85.192,3.81303377]
[1771324038164,3.57908434,85.244,85.151,21.1503]
[1771324038165,10.5634,85.247,85.205,3.81303377]
[1771324039758,10.5634,85.247,85.206,10.5684]
[1771324040767,10.5634,85.247,85.205,3.81303377]
[1771324040768,3.57126869,85.239,85.195,10.5697]
[1771324042564,3.57126869,85.239,85.201,10.5689]
[1771324043374,3.57126869,85.239,85.192,3.81303377]
[1771324044768,14.12179815,85.236,85.192,3.81303377]
[1771324045167,14.12179815,85.236,85.19,10.5704]
[1771324045168,3.56770525,85.229,85.19,10.5704]
[1771324047263,9.48870691,85.26,85.145,21.85329635]
[1771324047264,3.56784864,85.219,85.178,10.5718]
[1771324049176,3.56784864,85.219,85.185,10.571]
[1771324049370,3.56784864,85.219,85.171,3.81303377]
[1771324050671,3.56784864,85.219,85.177,10.5719]
[1771324052076,3.56784864,85.219,85.177,14.38493377]
[1771324052279,2.80573997,85.2,85.151,3.81303377]
[1771324052472,6.35145203,85.2,85.151,3.81303377]
[1771324052874,3.54571206,85.199,85.151,3.81303377]
[1771324053665,2.80573997,85.2,85.154,10.5748]
[1771324053666,3.54710978,85.197,85.154,10.5748]
[1771324054274,3.54710978,85.197,85.151,3.81303377]
[1771324055682,3.54710978,85.197,85.16,10.574]
[1771324056176,10.5719,85.178,85.136,10.5771]
[1771324056382,10.5719,85.178,85.079,176.3731]
[1771324056383,2.80573997,85.17,85.11,2.80573997]
[1771324056581,2.80573997,85.16,85.111,3.81303377]
[1771324056971,2.80573997,85.15,85.111,14.39313377]
[1771324057672,2.80573997,85.16,85.121,3.81303377]